bitfinex/quotes_BTCUSD_20241201
["timestamp","ask_amount","ask_price","bid_price","bid_amount"]
[1733091746516,0.73125101,97764.0,97763.0,0.12690042]
[1733091749854,0.11771001,97764.0,97763.0,0.12690042]
[1733091750906,0.11771001,97764.0,97763.0,0.00250042]
[1733091750907,0.12948101,97764.0,97763.0,0.00250042]
[1733091751814,0.37948101,97764.0,97763.0,0.00250042]
[1733091753655,0.99302201,97764.0,97763.0,0.00250042]
[1733091756059,0.99302201,97764.0,97763.0,0.00150042]
[1733091756060,0.98802201,97764.0,97763.0,0.00150042]
[1733091756280,0.97902201,97764.0,97763.0,0.00250042]
[1733091756502,0.98602201,97764.0,97763.0,0.00250042]
[1733091756738,0.99502201,97764.0,97763.0,0.00350042]
[1733091756945,0.97902201,97764.0,97763.0,0.00150042]
[1733091757174,0.98802201,97764.0,97763.0,0.00250042]
[1733091757392,0.99702201,97764.0,97763.0,0.00350042]
[1733091757619,0.98802201,97764.0,97763.0,0.00250042]
[1733091759593,0.97902201,97764.0,97763.0,0.00150042]
[1733091759822,0.98702201,97764.0,97763.0,0.00150042]
[1733091760047,0.99602201,97764.0,97763.0,0.00250042]
[1733091760482,0.98802201,97764.0,97763.0,0.00250042]
[1733091760907,0.99602201,97764.0,97763.0,0.00250042]
[1733091766708,0.97902201,97764.0,97763.0,0.00150042]
[1733091767205,0.99702201,97764.0,97763.0,0.00250042]
[1733091768047,0.98802201,97764.0,97763.0,0.00250042]
[1733091768511,0.99702201,97764.0,97763.0,0.00250042]
[1733091768996,0.98802201,97764.0,97763.0,0.00150042]
[1733091769422,0.99702201,97764.0,97763.0,0.00150042]
[1733091771585,0.5,97749.0,97748.0,0.1277]
[1733091771813,1.26638621,97749.0,97748.0,0.1277]
[1733091772022,1.26638621,97749.0,97742.0,0.1271]
[1733091772266,0.10284521,97743.0,97742.0,0.1271]
[1733091772475,0.71638621,97743.0,97742.0,0.1271]
[1733091773561,0.25,97738.0,97727.0,0.0782]
[1733091773782,0.10284521,97730.0,97728.0,0.07133889]
[1733091774009,0.71638621,97730.0,97728.0,0.07133889]
[1733091774236,0.71638621,97730.0,97727.0,0.0782]
[1733091775126,0.71638621,97730.0,97729.0,0.00190601]
[1733091775344,0.72538621,97730.0,97729.0,0.00190601]
[1733091775559,0.79792483,97730.0,97729.0,0.00190601]
[1733091775779,0.78892483,97730.0,97729.0,0.00190601]
[1733091776001,0.79792483,97730.0,97729.0,0.00190601]
[1733091776472,0.80492483,97730.0,97729.0,0.00190601]
[1733091776890,0.5,97728.0,97718.0,0.1261]
[1733091777121,0.5,97728.0,97727.0,0.00017804]
[1733091777819,0.60284521,97728.0,97727.0,0.00017804]
[1733091778238,1.21638621,97728.0,97727.0,0.00017804]
[1733091778481,1.32821767,97728.0,97727.0,0.00017804]
[1733091778695,1.31921767,97728.0,97727.0,0.00017804]
[1733091779138,1.32821767,97728.0,97727.0,0.00017804]
[1733091779582,1.33421767,97728.0,97727.0,0.00017804]
[1733091780030,1.33421767,97728.0,97727.0,0.00190764]
[1733091780699,0.72067667,97728.0,97727.0,0.00190764]
[1733091780912,1.33421767,97728.0,97727.0,0.00190764]
[1733091787655,1.33421767,97728.0,97727.0,0.12670764]
[1733091787881,1.33421767,97728.0,97727.0,0.11057704]
[1733091788313,1.33421767,97728.0,97727.0,0.0756]
[1733091791219,1.33421767,97728.0,97727.0,0.0773302]
[1733091799474,1.33421767,97728.0,97727.0,0.0017302]
[1733091800794,1.33421767,97728.0,97718.0,0.26370798]
[1733091801007,0.10284521,97719.0,97718.0,0.26388613]
[1733091801221,0.71638621,97719.0,97718.0,0.12120835]
[1733091802284,0.72538621,97719.0,97718.0,0.12120835]
[1733091803198,0.72938621,97719.0,97718.0,0.12120835]
[1733091803637,0.72938621,97719.0,97718.0,0.12293795]
[1733091803845,0.77938621,97719.0,97718.0,0.12293795]
[1733091804059,0.67975458,97719.0,97718.0,0.12293795]
[1733091804275,0.67975521,97719.0,97718.0,0.12293795]
[1733091805367,0.25,97712.0,97705.0,0.0764]
[1733091805579,0.10284521,97706.0,97705.0,0.0764]
[1733091806274,0.66334521,97706.0,97705.0,0.0764]
[1733091806504,1.22725521,97706.0,97705.0,0.0764]
[1733091806970,1.23625521,97706.0,97705.0,0.0764]
[1733091807395,1.24225521,97706.0,97705.0,0.0764]
[1733091808056,1.23325521,97706.0,97705.0,0.0764]
[1733091808480,1.23625521,97706.0,97705.0,0.0764]
[1733091808689,1.22725521,97706.0,97705.0,0.0764]
[1733091808900,1.24225521,97706.0,97705.0,0.0764]
[1733091812310,1.26238534,97706.0,97705.0,0.1246]
[1733091812729,0.69847534,97706.0,97705.0,0.1246]
[1733091812979,1.26238534,97706.0,97705.0,0.1246]
[1733091817097,1.26238534,97706.0,97705.0,0.1263296]
[1733091818482,1.26238534,97706.0,97705.0,0.0781296]
[1733091826371,1.26238534,97706.0,97705.0,0.0017296]
[1733091827721,1.25638534,97706.0,97705.0,0.0017296]
[1733091827959,1.25338534,97706.0,97705.0,0.0017296]
[1733091828203,1.26238534,97706.0,97705.0,0.0017296]
[1733091833856,1.24738534,97706.0,97705.0,0.0017296]
[1733091834056,1.25538534,97706.0,97705.0,0.0017296]
[1733091834290,1.26438534,97706.0,97705.0,0.0017296]
[1733091834510,1.25538534,97706.0,97705.0,0.0017296]
[1733091834728,1.25638534,97706.0,97705.0,0.0017296]
[1733091834998,1.26338534,97706.0,97705.0,0.0017296]
[1733091835197,1.25438534,97706.0,97705.0,0.0017296]
[1733091835473,1.25638534,97706.0,97705.0,0.0017296]
[1733091835685,1.26438534,97706.0,97705.0,0.0017296]
[1733091836307,0.70047534,97706.0,97705.0,0.0017296]
[1733091836566,1.26438534,97706.0,97705.0,0.0017296]
[1733091837004,1.26438534,97706.0,97700.0,0.06421515]
[1733091837244,0.35284521,97701.0,97700.0,0.06421515]
[1733091837476,0.91675521,97701.0,97700.0,0.06421515]
[1733091838823,0.92575521,97701.0,97700.0,0.06421515]
[1733091840365,0.93275521,97701.0,97700.0,0.06421515]
[1733091840574,0.93275521,97701.0,97700.0,0.06594495]
[1733091840786,1.03558667,97701.0,97700.0,0.06594495]
[1733091843236,1.03558667,97701.0,97700.0,0.02918245]
[1733091851382,0.47167667,97701.0,97700.0,0.02918245]
[1733091851645,1.03558667,97701.0,97700.0,0.02918245]
[1733091852097,1.03645177,97701.0,97700.0,0.02918245]
[1733091855292,1.03645177,97701.0,97700.0,0.00016339]
[1733091865536,1.03645177,97701.0,97700.0,5.14e-06]
[1733091869014,0.47254177,97701.0,97700.0,5.14e-06]
[1733091869225,1.03645177,97701.0,97700.0,5.14e-06]
[1733091870002,1.03645177,97701.0,97700.0,0.12990514]
[1733091872932,0.93362031,97701.0,97700.0,0.12990514]
[1733091882800,0.68362031,97701.0,97700.0,0.12990514]
[1733091883459,0.11971031,97701.0,97700.0,0.12990514]
[1733091883679,0.68362031,97701.0,97700.0,0.12990514]
[1733091895699,0.11971031,97701.0,97700.0,0.12990514]
[1733091896551,0.68362031,97701.0,97700.0,0.12990514]
[1733091906934,0.11971031,97701.0,97700.0,0.12990514]
[1733091907567,0.68362031,97701.0,97700.0,0.12990514]
[1733091921069,0.70521523,97701.0,97700.0,0.12990514]
[1733091921728,0.68362031,97701.0,97700.0,0.12990514]
[1733091948724,0.68362031,97701.0,97686.0,0.0117288]
[1733091948725,0.25,97687.0,97686.0,0.0017288]
[1733091948929,0.25,97687.0,97661.0,0.01]
[1733091948930,0.25,97672.0,97661.0,0.01]
[1733091949186,1.27725521,97672.0,97660.0,0.07310409]
[1733091949389,1.27725521,97672.0,97661.0,0.01]
[1733091949856,1.22725521,97672.0,97661.0,0.01]
[1733091950493,1.23625521,97672.0,97671.0,0.00037832]
[1733091950721,1.24325521,97672.0,97671.0,0.00037832]
[1733091951375,1.23625521,97672.0,97671.0,0.00037832]
[1733091951591,1.24325521,97672.0,97671.0,0.00037832]
[1733091952018,1.23425521,97672.0,97671.0,0.00037832]
[1733091952453,1.24325521,97672.0,97671.0,0.00037832]
[1733091952696,1.22725521,97672.0,97671.0,0.00037832]
[1733091953141,1.23625521,97672.0,97671.0,0.00037832]
[1733091953358,1.22725521,97672.0,97671.0,0.00037832]
[1733091953600,1.24325521,97672.0,97671.0,0.00037832]
[1733091954016,1.23625521,97672.0,97671.0,0.00037832]
[1733091954645,1.24325521,97672.0,97671.0,0.00037832]
[1733091955512,1.23425521,97672.0,97671.0,0.00037832]
[1733091955717,1.24325521,97672.0,97671.0,0.00210792]
[1733091955926,1.33908667,97672.0,97671.0,0.00210792]
[1733091956142,1.34508667,97672.0,97671.0,0.00210792]
[1733091956850,1.33908667,97672.0,97671.0,0.00210792]
[1733091957270,1.33708667,97672.0,97671.0,0.00210792]
[1733091957713,1.33008667,97672.0,97671.0,0.00210792]
[1733091957921,1.22725521,97672.0,97671.0,0.00210792]
[1733091958546,1.23625521,97672.0,97671.0,0.00210792]
[1733091958778,1.22725521,97672.0,97671.0,0.00210792]
[1733091959198,1.23425521,97672.0,97671.0,0.00210792]
[1733091959632,1.24325521,97672.0,97671.0,0.00210792]
[1733091961407,1.32135004,97672.0,97671.0,0.00210792]
[1733091962289,1.31435004,97672.0,97671.0,0.00210792]
[1733091962503,1.30535004,97672.0,97671.0,0.00210792]
[1733091962771,1.32135004,97672.0,97671.0,0.00210792]
[1733091963189,1.30535004,97672.0,97671.0,0.00210792]
[1733091963398,1.31435004,97672.0,97671.0,0.00210792]
[1733091963640,1.31335004,97672.0,97671.0,0.00210792]
[1733091964082,1.30535004,97672.0,97671.0,0.00210792]
[1733091964963,1.31435004,97672.0,97671.0,0.00210792]
[1733091965381,1.32235004,97672.0,97671.0,0.00210792]
[1733091970170,1.33039187,97672.0,97671.0,0.00210792]
[1733091970415,1.33839187,97672.0,97671.0,0.00210792]
[1733091971055,1.32939187,97672.0,97671.0,0.00210792]
[1733091971544,1.47433184,97672.0,97671.0,0.00210792]
[1733091971760,1.33839187,97672.0,97671.0,0.00210792]
[1733091972193,1.32939187,97672.0,97671.0,0.00210792]
[1733091972434,1.33839187,97672.0,97671.0,0.00210792]
[1733091972667,1.32139187,97672.0,97671.0,0.00210792]
[1733091972890,1.37952146,97672.0,97671.0,0.00210792]
[1733091973103,0.25,97652.0,97651.0,0.0002]
[1733091973323,0.91675521,97652.0,97651.0,0.0002]
[1733091974422,0.92375521,97652.0,97651.0,0.0002]
[1733091975620,1.24325521,97652.0,97651.0,0.0002]
[1733091976928,1.23625521,97652.0,97651.0,0.0002]
[1733091977138,1.33008667,97652.0,97651.0,0.0002]
[1733091977422,1.33808667,97652.0,97651.0,0.0002]
[1733091977629,1.34708667,97652.0,97651.0,0.0002]
[1733091977859,1.33808667,97652.0,97651.0,0.0002]
[1733091978089,1.34708667,97652.0,97651.0,0.0002]
[1733091978564,1.33908667,97652.0,97651.0,0.0002]
[1733091979051,1.34808667,97652.0,97651.0,0.0002]
[1733091979325,1.34808667,97652.0,97651.0,0.00193]
[1733091981416,1.33908667,97652.0,97651.0,0.00193]
[1733091981911,1.34808667,97652.0,97651.0,0.00193]
[1733091982145,1.33908667,97652.0,97651.0,0.00193]
[1733091982373,1.34808667,97652.0,97651.0,0.00193]
[1733091982609,1.42998667,97652.0,97651.0,0.00193]
[1733091984497,1.42998667,97652.0,97635.0,0.0483]
[1733091984498,0.5,97641.0,97635.0,0.0483]
[1733091984758,0.10284521,97638.0,97630.0,0.07146511]
[1733091984985,0.66675521,97638.0,97630.0,0.07146511]
[1733091985449,0.66675521,97638.0,97628.0,0.07146511]
[1733091985718,0.7923848,97638.0,97628.0,0.07146511]
[1733091985950,0.79244418,97638.0,97628.0,0.07146511]
[1733091986177,0.89992689,97638.0,97628.0,0.07146511]
[1733091986396,0.90892689,97638.0,97628.0,0.07146511]
[1733091986664,0.90977206,97638.0,97628.0,0.07146511]
[1733091986887,0.90077206,97638.0,97628.0,0.07146511]
[1733091987357,0.90977206,97638.0,97628.0,0.07146511]
[1733091987590,0.91877206,97638.0,97628.0,0.07146511]
[1733091988086,0.91877206,97638.0,97620.0,0.07319471]
[1733091988357,0.91877206,97638.0,97628.0,0.07146511]
[1733091988567,0.90977206,97638.0,97628.0,0.07146511]
[1733091988778,0.91877206,97638.0,97628.0,0.07146511]
[1733091990214,0.88938418,97638.0,97628.0,0.07146511]
[1733091991163,0.5,97629.0,97628.0,0.07146511]
[1733091991395,1.47725521,97629.0,97620.0,0.07319471]
[1733091991629,0.10284521,97621.0,97620.0,0.07319471]
[1733091992556,0.66675521,97621.0,97620.0,0.07319471]
[1733091993036,0.66675521,97621.0,97620.0,0.0017296]
[1733091993228,0.66675521,97621.0,97620.0,0.1230296]
[1733091993535,0.67375521,97621.0,97620.0,0.1230296]
[1733091994463,0.68275521,97621.0,97620.0,0.1230296]
[1733091995882,0.63671122,97621.0,97620.0,0.1230296]
[1733091996112,0.63671221,97621.0,97620.0,0.1230296]
[1733091996564,0.63671221,97621.0,97620.0,0.13533256]
[1733091996811,0.48678799,97621.0,97620.0,0.1230296]
[1733091997035,0.486787,97621.0,97620.0,0.1230296]
[1733091997950,0.486787,97621.0,97620.0,0.1330296]
[1733091998180,0.435787,97621.0,97620.0,0.1330296]
[1733091998406,0.435787,97621.0,97620.0,0.14633256]
[1733091998629,0.440787,97621.0,97620.0,0.14633256]
[1733091999495,0.449787,97621.0,97620.0,0.14733256]
[1733092001298,0.449787,97621.0,97620.0,0.1340296]
[1733092001708,0.449787,97621.0,97620.0,0.1324633]
[1733092002140,0.449787,97621.0,97620.0,0.13217841]
[1733092003488,0.449787,97621.0,97620.0,0.13390941]
[1733092005754,0.014,97621.0,97620.0,0.13390941]
[1733092007162,0.055044,97621.0,97620.0,0.13390941]
[1733092007398,0.490831,97621.0,97620.0,0.13390941]
[1733092008232,0.449787,97621.0,97620.0,0.13390941]
[1733092012319,0.449787,97621.0,97620.0,0.13210537]
[1733092012529,0.449827,97621.0,97620.0,0.12654809]
[1733092015145,0.4506925,97621.0,97620.0,0.12654809]
[1733092034579,0.4606525,97621.0,97620.0,0.12654809]
[1733092039089,0.4556525,97621.0,97620.0,0.12654809]
[1733092039313,0.4596525,97621.0,97620.0,0.12654809]
[1733092039540,0.4506525,97621.0,97620.0,0.12554809]
[1733092039939,0.4466525,97621.0,97620.0,0.12554809]
[1733092040096,0.4566525,97621.0,97620.0,0.12654809]
[1733092040299,0.4476525,97621.0,97620.0,0.12554809]
[1733092040710,0.4536525,97621.0,97620.0,0.12654809]
[1733092040942,0.4486525,97621.0,97620.0,0.12654809]
[1733092041541,0.01696,97621.0,97620.0,0.12654809]
[1733092042681,0.448653,97621.0,97620.0,0.12654809]
[1733092042934,0.01696,97621.0,97620.0,0.12654809]
[1733092043144,0.448653,97621.0,97620.0,0.12654809]
[1733092043760,0.55149821,97621.0,97620.0,0.08084809]
[1733092043966,0.55149821,97621.0,97620.0,0.012731]
[1733092045069,0.54549821,97621.0,97620.0,0.011731]
[1733092045283,0.55249821,97621.0,97620.0,0.012731]
[1733092045707,0.55449821,97621.0,97620.0,0.012731]
[1733092046097,0.55249821,97621.0,97620.0,0.012731]
[1733092046520,0.55449821,97621.0,97620.0,0.012731]
[1733092047152,0.54649821,97621.0,97620.0,0.011731]
[1733092047359,0.54649821,97621.0,97620.0,0.001731]
[1733092047567,0.55249821,97621.0,97620.0,0.011731]
[1733092048453,0.55249821,97621.0,97620.0,0.001731]
[1733092048663,0.55336371,97621.0,97620.0,0.001731]
[1733092049295,0.55336371,97621.0,97620.0,0.011731]
[1733092051152,0.55336371,97621.0,97620.0,0.001731]
[1733092051623,4e-05,97630.0,97620.0,0.001731]
[1733092051624,4e-05,97630.0,97621.0,0.1257]
[1733092051844,4e-05,97630.0,97629.0,0.01]
[1733092052067,4e-05,97630.0,97629.0,0.0873]
[1733092052963,0.00504,97630.0,97629.0,0.0873]
[1733092053385,4e-05,97630.0,97629.0,0.0873]
[1733092053846,1.149088,97630.0,97629.0,0.0873]
[1733092053991,0.873699,97630.0,97629.0,0.0873]
[1733092054615,0.886699,97630.0,97629.0,0.0883]
[1733092055014,0.877699,97630.0,97629.0,0.0873]
[1733092055214,0.875699,97630.0,97629.0,0.0873]
[1733092055626,0.873699,97630.0,97629.0,0.0873]
[1733092056151,4e-05,97630.0,97629.0,0.0873]
[1733092056361,1.260835,97630.0,97629.0,0.0873]
[1733092056574,0.983569,97630.0,97629.0,0.0873]
[1733092057214,0.985609,97630.0,97629.0,0.0873]
[1733092057432,0.983609,97630.0,97629.0,0.0873]
[1733092057660,0.986609,97630.0,97629.0,0.0873]
[1733092058082,0.983609,97630.0,97629.0,0.0873]
[1733092058440,0.904869,97630.0,97629.0,0.0873]
[1733092058639,0.879607,97630.0,97629.0,0.0873]
[1733092059166,0.876607,97630.0,97629.0,0.0873]
[1733092061452,0.8804725,97630.0,97629.0,0.0873]
[1733092061690,0.8774725,97630.0,97629.0,0.0873]
[1733092062154,0.8794725,97630.0,97629.0,0.0873]
[1733092072272,0.98231771,97630.0,97620.0,0.001731]
[1733092072485,1.82605921,97629.0,97624.0,0.01]
[1733092072711,1.697728,97628.0,97626.0,0.01]
[1733092072926,0.0029455,97630.0,97629.0,0.001731]
[1733092073143,2.0521245,97630.0,97629.0,0.001731]
[1733092073383,2.1983125,97630.0,97629.0,0.001731]
[1733092073603,1.7162415,97630.0,97629.0,0.001731]
[1733092073820,0.007269,97629.0,97626.0,0.01]
[1733092074041,0.10284521,97628.0,97626.0,0.01]
[1733092074247,1.275367,97627.0,97624.0,0.01]
[1733092074463,0.10284521,97626.0,97623.0,0.01]
[1733092074692,2.946252,97625.0,97624.0,0.01]
[1733092074942,2.904938,97625.0,97624.0,0.01]
[1733092075161,2.765623,97625.0,97624.0,0.01]
[1733092076054,2.74077,97625.0,97624.0,0.01]
[1733092076286,2.84361521,97625.0,97624.0,0.01]
[1733092077182,2.76461821,97625.0,97624.0,0.01]
[1733092077626,2.76961821,97625.0,97624.0,0.011]
[1733092079694,0.10984521,97625.0,97624.0,0.011]
[1733092079926,0.10988521,97625.0,97624.0,0.011]
[1733092080380,5.15988521,97625.0,97624.0,0.011]
[1733092084703,5.15988521,97625.0,97624.0,0.012731]
[1733092086275,4.10712821,97625.0,97624.0,0.012731]
[1733092086749,4.09424221,97625.0,97624.0,0.012731]
[1733092089801,4.07365521,97625.0,97624.0,0.012731]
[1733092090973,4.01947621,97625.0,97624.0,0.012731]
[1733092091410,3.94830821,97625.0,97624.0,0.012731]
[1733092092318,3.94834821,97625.0,97624.0,0.012731]
[1733092092553,3.31538,97625.0,97624.0,0.012731]
[1733092092790,3.31538,97625.0,97624.0,0.095031]
[1733092093028,3.187949,97625.0,97624.0,0.095031]
[1733092093486,3.29079421,97625.0,97624.0,0.007431]
[1733092093735,3.29079421,97625.0,97620.0,0.001731]
[1733092093987,5.15284521,97624.0,97620.0,0.001731]
[1733092094238,5.180971,97623.0,97620.0,0.001731]
[1733092094490,5.20832579,97622.0,97620.0,0.001731]
[1733092094721,5.15284521,97621.0,97620.0,0.001731]
[1733092094947,5.65284521,97621.0,97620.0,0.001731]
[1733092095401,5.15284521,97621.0,97620.0,0.002731]
[1733092095617,5.15284521,97621.0,97620.0,0.084231]
[1733092096072,5.16184521,97621.0,97620.0,0.085231]
[1733092096289,5.15284521,97621.0,97620.0,0.084231]
[1733092096527,5.15784521,97621.0,97620.0,0.085231]
[1733092096763,5.16684521,97621.0,97620.0,0.086231]
[1733092096978,5.16188521,97621.0,97620.0,0.085231]
[1733092097300,5.16588521,97621.0,97620.0,0.085231]
[1733092098314,5.16188521,97621.0,97620.0,0.085231]
[1733092098748,5.15688521,97621.0,97620.0,0.084231]
[1733092099000,5.16588521,97621.0,97620.0,0.085231]
[1733092099673,5.15688521,97621.0,97620.0,0.084231]
[1733092099882,5.16588521,97621.0,97620.0,0.085231]
[1733092104873,5.16588521,97621.0,97620.0,0.002731]
[1733092113100,5.41588521,97621.0,97620.0,0.002731]
[1733092113507,5.42588521,97621.0,97620.0,0.002731]
[1733092113908,0.37588521,97621.0,97620.0,0.002731]
[1733092114116,5.42588521,97621.0,97620.0,0.002731]
[1733092126095,0.37588521,97621.0,97620.0,0.002731]
[1733092126314,5.42588521,97621.0,97620.0,0.002731]
[1733092127448,5.52871667,97621.0,97620.0,0.002731]
[1733092128152,5.17588521,97621.0,97620.0,0.083231]
[1733092157462,3.55794821,97621.0,97620.0,0.083231]
[1733092157684,3.27940021,97621.0,97620.0,0.083231]
[1733092161844,3.27940021,97621.0,97620.0,0.129431]
[1733092172702,0.12588521,97621.0,97620.0,0.129431]
[1733092173165,5.17588521,97621.0,97620.0,0.129431]
[1733092182845,5.17588521,97621.0,97591.0,0.0102]
[1733092183055,5.07983064,97620.0,97611.0,0.21442305]
[1733092183264,5.15284521,97619.0,97611.0,0.21442305]
[1733092183475,5.05,97618.0,97593.0,0.01]
[1733092183886,5.05,97618.0,97608.0,0.21442305]
[1733092184095,5.05,97618.0,97594.0,0.01]
[1733092184526,5.05,97618.0,97595.0,0.0015969]
[1733092184742,5.05,97618.0,97608.0,0.21442305]
[1733092184957,0.003,97618.0,97608.0,0.21442305]
[1733092185173,0.003,97618.0,97594.0,0.01]
[1733092185174,5.05,97617.0,97594.0,0.01]
[1733092185410,5.05,97617.0,97608.0,0.21442305]
[1733092185856,5.05,97617.0,97594.0,0.01]
[1733092186121,5.05,97617.0,97608.0,0.0824]
[1733092186334,5.05,97617.0,97609.0,0.0455]
[1733092186576,5.05,97617.0,97594.0,0.01]
[1733092186577,0.02997386,97616.0,97594.0,0.01]
[1733092186813,5.05,97615.0,97607.0,0.21442305]
[1733092187296,5.05,97617.0,97607.0,0.21442305]
[1733092187506,5.05,97618.0,97607.0,0.21442305]
[1733092187731,0.003,97617.0,97607.0,0.21442305]
[1733092187956,5.05,97616.0,97607.0,0.21442305]
[1733092188847,5.056,97618.0,97607.0,0.21442305]
[1733092189053,5.05,97617.0,97607.0,0.21442305]
[1733092189561,0.005,97616.0,97607.0,0.21442305]
[1733092189825,0.002,97617.0,97607.0,0.26412305]
[1733092190040,5.05,97616.0,97607.0,0.26585265]
[1733092190893,5.051,97616.0,97607.0,0.26585265]
[1733092191107,5.05,97615.0,97607.0,0.26585265]
[1733092191734,5.05,97615.0,97607.0,0.0514296]
[1733092192389,0.10284521,97614.0,97607.0,0.0017296]
[1733092192619,5.05,97613.0,97607.0,0.0017296]
[1733092192837,0.10284521,97612.0,97607.0,0.0017296]
[1733092193073,5.05,97611.0,97607.0,0.0017296]
[1733092193321,0.10284521,97610.0,97607.0,0.0017296]
[1733092193751,5.05,97609.0,97607.0,0.0017296]
[1733092193961,5.15284521,97609.0,97607.0,0.0017296]
[1733092194168,0.10284521,97609.0,97607.0,0.0017296]
[1733092194376,5.05,97608.0,97607.0,0.0017296]
[1733092195509,5.051,97608.0,97607.0,0.0017296]
[1733092195726,5.05105935,97608.0,97607.0,0.0017296]
[1733092195938,5.05005935,97608.0,97607.0,0.0017296]
[1733092196190,5.05305935,97608.0,97607.0,0.0027296]
[1733092196621,5.05305935,97608.0,97607.0,0.0017296]
[1733092197521,5.05005935,97608.0,97607.0,0.0017296]
[1733092197735,5.05305935,97608.0,97607.0,0.0017296]
[1733092197965,5.05005935,97608.0,97607.0,0.0017296]
[1733092198407,5.05305935,97608.0,97607.0,0.0017296]
[1733092200276,5.05305935,97608.0,97607.0,0.0001296]
[1733092206542,5.05405935,97608.0,97607.0,0.0001296]
[1733092207151,5.05105935,97608.0,97607.0,0.0001296]
[1733092207358,5.05505935,97608.0,97607.0,0.0001296]
[1733092214105,5.05678915,97608.0,97607.0,0.0001296]
[1733092214330,5.05678915,97608.0,97599.0,0.0488]
[1733092214543,5.05,97607.0,97599.0,0.0488]
[1733092216583,5.051,97607.0,97599.0,0.0488]
[1733092216790,5.05,97606.0,97599.0,0.0488]
[1733092218516,5.05,97607.0,97599.0,0.0488]
[1733092218740,0.003,97606.0,97599.0,0.0488]
[1733092219004,5.05,97605.0,97599.0,0.0488]
[1733092220286,5.054,97607.0,97599.0,0.0488]
[1733092220491,5.05,97604.0,97599.0,0.0488]
[1733092220709,5.05,97603.0,97599.0,0.0488]
[1733092220916,5.05,97606.0,97599.0,0.0488]
[1733092221132,5.05,97607.0,97599.0,0.0488]
[1733092221361,0.00178915,97608.0,97599.0,0.0488]
[1733092221585,5.05,97607.0,97599.0,0.0488]
[1733092222036,0.002,97605.0,97599.0,0.0488]
[1733092222251,5.05,97604.0,97599.0,0.0488]
[1733092223618,5.05,97606.0,97599.0,0.0488]
[1733092224230,0.002,97604.0,97599.0,0.0488]
[1733092224441,5.05,97603.0,97598.0,0.21447534]
[1733092224655,5.05,97607.0,97598.0,0.21447534]
[1733092224858,0.003,97606.0,97598.0,0.21447534]
[1733092225062,5.05,97607.0,97598.0,0.21447534]
[1733092225264,5.05,97606.0,97598.0,0.21447534]
[1733092225464,5.05,97607.0,97598.0,0.21447534]
[1733092225689,5.05,97605.0,97598.0,0.21447534]
[1733092225902,5.05,97606.0,97598.0,0.21547534]
[1733092226116,5.05,97607.0,97598.0,0.21547534]
[1733092226329,5.05,97605.0,97598.0,0.21447534]
[1733092226535,0.002,97604.0,97598.0,0.21534024]
[1733092226738,5.05,97604.0,97598.0,0.21534024]
[1733092226954,5.05,97606.0,97598.0,0.21534024]
[1733092227175,0.003,97606.0,97598.0,0.21534024]
[1733092227365,5.05,97605.0,97598.0,0.21534024]
[1733092227581,5.05,97606.0,97598.0,0.21534024]
[1733092227834,0.002,97604.0,97598.0,0.21534024]
[1733092228244,5.05,97603.0,97598.0,0.21534024]
[1733092229431,5.05,97603.0,97598.0,0.0008649]
[1733092230360,0.03972299,97603.0,97598.0,0.0008649]
[1733092230585,5.05,97602.0,97598.0,0.0008649]
[1733092231028,5.05,97602.0,97598.0,0.0018649]
[1733092231473,5.05,97602.0,97598.0,0.0008649]
[1733092231744,0.003,97602.0,97598.0,0.0008649]
[1733092231943,5.05,97601.0,97598.0,0.0008649]
[1733092232670,5.05,97601.0,97593.0,0.19444964]
[1733092233821,0.002,97601.0,97593.0,0.19444964]
[1733092234048,5.05,97600.0,97593.0,0.19444964]
[1733092234491,0.00178915,97608.0,97593.0,0.19444964]
[1733092234492,0.002,97601.0,97593.0,0.19444964]
[1733092234700,5.05,97600.0,97593.0,0.19444964]
[1733092235629,0.002,97600.0,97593.0,0.19444964]
[1733092235877,5.05,97599.0,97593.0,0.19444964]
[1733092237227,0.001,97599.0,97593.0,0.19444964]
[1733092237492,5.05,97598.0,97593.0,0.19444964]
[1733092238410,5.05,97598.0,97593.0,0.19544964]
[1733092238862,5.05,97598.0,97593.0,0.19444964]
[1733092239090,5.05,97598.0,97593.0,0.19531474]
[1733092239314,5.05,97599.0,97593.0,0.19531474]
[1733092240181,5.05,97599.0,97593.0,0.19631474]
[1733092240879,5.05,97599.0,97593.0,0.19531474]
[1733092241103,0.001,97598.0,97593.0,0.19631474]
[1733092241328,5.05,97599.0,97593.0,0.0018651]
[1733092241549,5.05,97598.0,97593.0,0.0018651]
[1733092241770,5.051,97599.0,97593.0,0.0018651]
[1733092241988,5.05,97598.0,97593.0,0.0008651]
[1733092242658,5.05,97599.0,97593.0,0.0008651]
[1733092242882,0.001,97598.0,97593.0,0.0008651]
[1733092243100,5.05,97597.0,97593.0,0.0008651]
[1733092243577,5.05,97597.0,97593.0,0.0018651]
[1733092244026,5.05,97597.0,97593.0,0.0008651]
[1733092244243,5.051,97599.0,97593.0,0.0008651]
[1733092244461,5.051,97599.0,97593.0,0.0018651]
[1733092244730,1.0,97600.0,97593.0,0.0018651]
[1733092244944,0.001,97597.0,97593.0,0.0018651]
[1733092245193,1.0,97600.0,97593.0,0.0018651]
[1733092245194,5.05,97596.0,97593.0,0.0008651]
[1733092245418,5.05,97599.0,97593.0,0.0008651]
[1733092245657,5.051,97599.0,97593.0,0.0008651]
[1733092245896,5.05,97598.0,97593.0,0.0008651]
[1733092246120,5.05,97599.0,97593.0,0.0008651]
[1733092247036,5.05,97599.0,97593.0,0.0018651]
[1733092247261,0.001,97597.0,97593.0,0.0018651]
[1733092247482,5.05,97596.0,97593.0,0.0018651]
[1733092247724,5.051,97599.0,97593.0,0.0018651]
[1733092248152,5.05,97598.0,97593.0,0.0008651]
[1733092248626,1.116416,97598.0,97593.0,0.0018651]
[1733092248851,1.159014,97597.0,97593.0,0.0018651]
[1733092249073,1.347163,97599.0,97593.0,0.0008651]
[1733092249763,0.401765,97599.0,97595.0,0.0499]
[1733092250032,0.125489,97598.0,97597.0,0.0499]
[1733092250265,0.103946,97598.0,97597.0,0.1254]
[1733092250489,0.103946,97599.0,97597.0,0.1254]
[1733092250727,0.103946,97598.0,97596.0,0.1211]
[1733092250964,1.0,97600.0,97597.0,0.1211]